bitfinex/quotes_SOLUSD_20250228
["timestamp","ask_amount","ask_price","bid_price","bid_amount"]
[1740710714388,0.063,129.82,129.8,0.14216157]
[1740710714901,0.063,129.82,129.8,20.20057116]
[1740710715268,0.063,129.82,129.8,1.40876073]
[1740710715466,0.063,129.82,129.74,0.14216157]
[1740710715787,0.063,129.82,129.78,18.79181043]
[1740710716293,0.063,129.84,129.82,0.14216157]
[1740710716525,0.063,129.84,129.83,150.36024563]
[1740710716800,0.063,129.84,129.83,236.51819653]
[1740710717669,0.063,129.84,129.83,234.96759976]
[1740710717991,0.063,129.9,129.84,0.14216157]
[1740710718168,0.063,129.9,129.83,236.37603496]
[1740710718169,0.063,129.9,129.85,1.40821827]
[1740710718684,0.063,129.9,129.83,130.16]
[1740710718864,0.063,129.9,129.84,18.79181043]
[1740710719065,0.063,129.9,129.86,18.79181043]
[1740710719270,0.063,129.9,129.88,18.79181043]
[1740710719571,0.063,129.9,129.83,211.76]
[1740710719572,0.063,129.9,129.83,130.16]
[1740710719772,0.063,129.9,129.83,216.3179509]
[1740710719976,0.063,129.9,129.84,1.40832673]
[1740710720271,0.063,129.9,129.85,18.79181043]
[1740710720811,0.063,129.9,129.85,104.94976133]
[1740710721098,0.063,129.9,129.89,18.79181043]
[1740710721398,0.03,129.92,129.89,20.19959503]
[1740710721608,0.03,129.92,129.89,20.05743346]
[1740710721778,0.03,129.92,129.83,130.16]
[1740710722589,0.03,129.92,129.76,130.02]
[1740710722997,0.03,129.92,129.79,20.0]
[1740710723302,0.03,129.92,129.83,20.0]
[1740710723513,0.03,129.92,129.84,18.64964886]
[1740710723677,0.03,129.92,129.83,0.063]
[1740710724083,0.03,129.9,129.83,0.063]
[1740710724783,0.03,129.9,129.84,0.14216157]
[1740710724979,0.03,129.9,129.88,0.14216157]
[1740710725185,0.03,129.9,129.83,0.063]
[1740710726313,0.14216157,129.86,129.83,0.063]
[1740710726608,7.6864,129.88,129.73,266.48]
[1740710726806,7.6864,129.88,129.74,18.64964886]
[1740710727119,7.6864,129.88,129.73,266.48]
[1740710727916,7.6864,129.88,129.74,0.14216157]
[1740710728088,7.6864,129.88,129.73,266.48]
[1740710728289,7.6864,129.88,129.73,129.98]
[1740710728503,0.14216157,129.87,129.73,129.98]
[1740710728882,20.0,129.85,129.73,129.98]
[1740710729089,0.14216157,129.87,129.73,129.98]
[1740710729287,20.0,129.83,129.73,129.98]
[1740710729512,0.14216157,129.85,129.76,20.0]
[1740710729712,7.6864,129.88,129.76,20.0]
[1740710729918,7.6864,129.88,129.77,0.14216157]
[1740710730218,7.6864,129.88,129.77,155.29181043]
[1740710730519,52.48121017,129.87,129.73,129.98]
[1740710730687,0.14216157,129.86,129.73,129.98]
[1740710731020,7.6864,129.88,129.76,20.0]
[1740710731197,7.6864,129.88,129.77,18.79181043]
[1740710731397,0.03,129.9,129.77,155.29181043]
[1740710731597,0.03,129.9,129.81,18.79181043]
[1740710731804,0.03,129.9,129.81,0.14216157]
[1740710732015,0.03,129.9,129.8,20.0]
[1740710732316,0.03,129.9,129.73,129.98]
[1740710732317,18.67964886,129.9,129.73,129.98]
[1740710732689,18.64964886,129.86,129.73,129.98]
[1740710732889,18.64964886,129.84,129.73,129.98]
[1740710733319,52.48121017,129.85,129.76,20.0]
[1740710733616,7.1045,129.87,129.81,18.64964886]
[1740710733824,0.03,129.9,129.88,20.0]
[1740710733996,0.03,129.9,129.84,129.94]
[1740710734515,18.67964886,129.9,129.76,129.94]
[1740710734688,18.64964886,129.88,129.76,129.94]
[1740710734883,52.48121017,129.89,129.76,129.94]
[1740710735090,0.03,129.9,129.87,20.0]
[1740710735386,0.03,129.9,129.78,0.14216157]
[1740710735599,0.03,129.9,129.78,136.64216157]
[1740710735912,0.03,129.9,129.89,38.64964886]
[1740710736215,0.03,129.9,129.89,20.0]
[1740710736601,0.03,129.9,129.79,18.79181043]
[1740710736783,0.03,129.9,129.79,155.29181043]
[1740710736988,0.03,129.9,129.83,0.14216157]
[1740710737190,0.03,129.9,129.82,20.0]
[1740710737601,0.03,129.9,129.83,0.14216157]
[1740710737792,0.03,129.9,129.87,0.14216157]
[1740710737990,0.03,129.9,129.89,18.79181043]
[1740710738201,0.063,129.96,129.91,38.64964886]
[1740710738407,0.063,129.96,129.91,175.29181043]
[1740710739517,0.063,129.96,129.91,38.64964886]
[1740710739719,0.063,129.96,129.92,0.14216157]
[1740710740227,0.063,129.96,129.88,129.96]
[1740710740398,0.063,129.96,129.89,0.14216157]
[1740710740588,0.063,129.96,129.89,18.64964886]
[1740710740791,0.063,129.96,129.88,129.96]
[1740710741395,0.063,129.96,129.93,20.0]
[1740710741623,0.063,129.96,129.88,129.96]
[1740710741824,0.063,129.96,129.89,18.64964886]
[1740710742119,18.71264886,129.96,129.88,129.96]
[1740710742307,18.64964886,129.94,129.88,129.96]
[1740710742723,18.64964886,129.94,129.88,121.6267]
[1740710742929,18.64964886,129.92,129.79,129.9]
[1740710743126,18.64964886,129.9,129.79,129.9]
[1740710743317,18.64964886,129.88,129.77,0.063]
[1740710743523,18.64964886,129.86,129.71,129.9]
[1740710743820,18.64964886,129.82,129.7,0.063]
[1740710744031,18.64964886,129.8,129.63,129.9]
[1740710744319,18.64964886,129.78,129.66,20.0]
[1740710744521,18.64964886,129.78,129.63,129.9]
[1740710744522,52.48121017,129.77,129.63,129.9]
[1740710744723,52.48121017,129.76,129.63,129.9]
[1740710744914,18.64964886,129.74,129.48,136.5]
[1740710745226,52.48121017,129.73,129.55,129.96]
[1740710745527,52.48121017,129.8,129.58,20.0]
[1740710745724,52.48121017,129.8,129.63,18.64964886]
[1740710745905,7.7053,129.78,129.55,266.46]
[1740710746230,109.07844303,129.72,129.59,38.64964886]
[1740710746521,109.07844303,129.72,129.6,0.14216157]
[1740710747106,109.07844303,129.72,129.57,7.9928]
[1740710747316,59.49733256,129.77,129.58,136.5]
[1740710747523,52.48121017,129.76,129.57,136.5]
[1740710747706,52.48121017,129.75,129.55,76.14324129]
[1740710748030,18.64964886,129.72,129.55,76.14324129]
[1740710748206,18.64964886,129.7,129.55,76.14324129]
[1740710748601,18.64964886,129.68,129.55,6.16258053]
[1740710748802,18.64964886,129.68,129.47,0.063]
[1740710748803,20.04428061,129.68,129.47,266.563]
[1740710749027,42.73901823,129.64,129.6,0.063]
[1740710749417,42.73901823,129.64,129.48,136.5]
[1740710749612,0.14216157,129.63,129.47,130.063]
[1740710750010,0.14216157,129.61,129.47,103.13118705]
[1740710750225,0.14216157,129.59,129.39,279.87214235]
[1740710750422,0.14216157,129.57,129.4,7.7273]
[1740710750623,0.14216157,129.57,129.39,130.0]
[1740710750828,12.65376157,129.55,129.39,130.0]
[1740710751018,0.14216157,129.53,129.39,130.0]
[1740710751221,0.14216157,129.53,129.42,20.0]
[1740710751425,52.48121017,129.52,129.42,20.0]
[1740710751732,52.48121017,129.51,129.33,144.7592]
[1740710751921,0.14216157,129.5,129.33,15.9907]
[1740710752117,7.86426157,129.5,129.31,130.08]
[1740710752430,0.14216157,129.45,129.22,130.08]
[1740710752732,0.14216157,129.43,129.23,7.7375]
[1740710753135,0.14216157,129.41,129.23,7.7375]
[1740710753309,0.14216157,129.39,129.22,130.08]
[1740710753647,0.14216157,129.37,129.22,130.08]
[1740710753822,0.14216157,129.35,129.22,130.08]
[1740710754022,0.14216157,129.35,129.2,0.063]
[1740710754023,0.14216157,129.33,129.2,0.063]
[1740710754216,0.14216157,129.31,129.2,0.063]
[1740710754425,54.10992883,129.3,129.2,0.063]
[1740710754623,0.14216157,129.29,129.2,0.063]
[1740710755328,1.62871866,129.28,129.2,0.063]
[1740710755522,1.77088023,129.29,129.2,0.063]
[1740710755710,52.48121017,129.3,129.2,0.063]
[1740710755909,52.48121017,129.37,129.21,0.14216157]
[1740710756103,1.62871866,129.36,129.24,20.0]
[1740710756332,52.48121017,129.37,129.25,1.62373967]
[1740710756556,1.62871866,129.36,129.24,21.6239516]
[1740710756714,1.62871866,129.36,129.24,20.0]
[1740710756911,1.62871866,129.36,129.25,1.62404139]
[1740710757117,1.62871866,129.36,129.25,0.14216157]
[1740710757334,1.62871866,129.36,129.21,0.14216157]
[1740710757520,1.62871866,129.36,129.21,1.62427601]
[1740710757708,52.48121017,129.35,129.2,1.68735417]
[1740710757915,52.48121017,129.35,129.2,9.42715417]
[1740710758141,54.10992883,129.35,129.23,20.0]
[1740710758311,12.8212,129.4,129.24,0.14216157]
[1740710758312,1.62871866,129.38,129.24,0.14216157]
[1740710758648,1.62871866,129.38,129.26,0.14216157]
[1740710758934,1.62871866,129.37,129.25,1.62363464]
[1740710759141,52.48121017,129.36,129.25,1.62363464]
[1740710759338,1.62871866,129.35,129.25,20.0]
[1740710759513,52.48121017,129.34,129.22,80.12714855]
[1740710759714,54.10992883,129.33,129.22,80.12714855]
[1740710759929,54.10992883,129.33,129.21,38.92040683]
[1740710760122,52.48121017,129.33,129.22,1.62425602]
[1740710760314,54.10992883,129.32,129.2,0.063]
[1740710760520,1.62871866,129.32,129.2,0.063]
[1740710760715,54.10992883,129.38,129.2,165.27669007]
[1740710760918,52.48121017,129.38,129.21,0.14216157]
[1740710761111,52.48121017,129.38,129.23,0.14216157]
[1740710761312,54.10992883,129.37,129.24,1.62355374]
[1740710761633,1.62871866,129.37,129.24,1.76614953]
[1740710761839,12.8212,129.4,129.24,1.76614953]
[1740710762144,1.62871866,129.42,129.32,20.0]
[1740710762322,52.48121017,129.41,129.32,20.0]
[1740710762639,52.48121017,129.41,129.32,0.14216157]
[1740710762837,54.10992883,129.4,129.31,20.0]
[1740710763341,52.62337174,129.39,129.21,7.7393]
[1740710763646,0.14216157,129.35,129.2,0.063]
[1740710763940,0.14216157,129.33,129.2,0.063]
[1740710764116,55.50456058,129.34,129.2,138.18773454]
[1740710764117,53.87584192,129.34,129.2,138.18773454]
[1740710764318,1.62871866,129.39,129.23,20.0]
[1740710764319,52.48121017,129.38,129.23,20.0]
[1740710764519,1.62871866,129.37,129.25,0.14216157]
[1740710764820,1.62871866,129.42,129.26,1.62378061]
[1740710765033,13.208,129.43,129.3,0.14216157]
[1740710765232,8.0314,129.47,129.34,0.14216157]
[1740710765450,1.62871866,129.49,129.36,0.14216157]
[1740710765741,52.48121017,129.48,129.24,136.71324235]
[1740710765932,1.62871866,129.47,129.25,1.62324886]
[1740710766237,52.48121017,129.46,129.3,0.14216157]
[1740710766546,12.3876,129.5,129.34,0.14216157]
[1740710766547,52.48121017,129.45,129.34,0.14216157]
[1740710766714,12.3876,129.5,129.36,0.14216157]
[1740710766920,1.62871866,129.49,129.38,0.14216157]
[1740710767209,1.62871866,129.49,129.35,1.6222192]
[1740710767414,52.48121017,129.48,129.36,0.14216157]
[1740710767621,54.10992883,129.47,129.34,20.0]
[1740710767821,52.48121017,129.46,129.34,20.0]
[1740710768042,52.48121017,129.49,129.39,0.14216157]
[1740710768238,12.3876,129.5,129.39,1.76404822]
[1740710768430,52.48121017,129.53,129.43,0.14216157]
[1740710768628,7.8849,129.55,129.42,20.0]
[1740710768629,54.10992883,129.52,129.42,20.0]
[1740710768834,54.10992883,129.52,129.32,19.3314]
[1740710768835,52.48121017,129.51,129.32,0.14216157]
[1740710769037,20.0,129.47,129.32,0.14216157]
[1740710769239,67.90726058,129.46,129.32,0.14216157]
[1740710769546,53.87584192,129.45,129.27,0.14216157]
[1740710769710,55.50456058,129.44,129.27,0.14216157]
[1740710769914,53.87584192,129.43,129.27,0.14216157]
[1740710770231,20.0,129.38,129.25,0.14216157]
[1740710770425,20.0,129.33,129.2,0.063]
[1740710770739,55.50456058,129.32,129.2,0.063]
[1740710770938,20.0,129.28,129.2,0.063]
[1740710771242,54.10992883,129.27,129.09,7.7465]
[1740710771434,52.48121017,129.26,129.1,1.62545954]
[1740710771741,0.14216157,129.24,129.07,9.43595954]
[1740710771942,0.14216157,129.22,129.07,1.68845954]
[1740710772241,0.14216157,129.2,129.07,0.063]
[1740710772540,0.14216157,129.18,129.08,20.0]
[1740710772741,0.14216157,129.16,129.07,0.063]
[1740710772943,0.14216157,129.14,129.07,0.063]
[1740710773322,1.62871866,129.17,129.07,0.063]
[1740710773518,0.14216157,129.16,129.09,0.063]
[1740710773826,1.62871866,129.15,129.09,0.063]
[1740710774028,0.14216157,129.17,129.09,0.063]
[1740710774251,1.62871866,129.17,129.09,0.063]
[1740710774420,0.14216157,129.15,129.09,0.063]
[1740710774624,0.14216157,129.13,129.09,39.00126016]
[1740710774825,1.62871866,129.12,129.11,20.0]
[1740710775048,0.14216157,129.17,129.09,39.00126016]
[1740710775223,0.14216157,129.15,129.09,39.00126016]
[1740710775548,0.14216157,129.13,129.09,39.00126016]
[1740710775850,0.14216157,129.11,129.08,38.96601548]
[1740710776052,0.14216157,129.09,129.07,0.063]
[1740710776219,54.10992883,129.13,129.07,0.063]
[1740710776426,52.62337174,129.12,129.05,8.06699108]
[1740710776625,0.14216157,129.1,128.91,1.62773717]
[1740710776838,54.10992883,129.09,128.91,138.12773717]
[1740710777053,54.10992883,129.09,128.92,38.8809369]
[1740710777239,54.10992883,129.09,128.97,20.0]
[1740710777549,0.14216157,129.13,128.98,21.62734193]
[1740710777730,1.62871866,129.17,128.99,0.14216157]
[1740710777931,0.14216157,129.15,128.96,1.62663703]
[1740710778147,0.14216157,129.13,128.96,40.52728921]
[1740710778457,55.50456058,129.12,128.89,38.3656165]
[1740710778626,0.14216157,129.1,128.89,38.3656165]
[1740710778827,0.14216157,129.05,128.89,38.3656165]
[1740710779038,9.1316,129.11,128.82,38.13163086]
[1740710779039,0.14216157,129.03,128.82,38.13163086]
[1740710779241,0.14216157,129.01,128.82,39.76066755]
[1740710779443,1.62871866,129.0,128.83,38.40296014]
[1740710779645,52.48121017,128.99,128.83,38.40296014]
[1740710779945,54.10992883,128.98,128.81,38.47011659]
[1740710780138,1.62871866,128.98,128.81,47.86278707]
[1740710780343,1.62871866,129.01,128.81,47.86278707]
[1740710780550,52.48121017,129.0,128.81,47.86278707]
[1740710780748,1.62871866,128.99,128.81,47.86278707]
[1740710780951,0.14216157,128.98,128.81,47.86278707]
[1740710781156,1.62871866,128.97,128.81,47.86278707]
[1740710781458,0.14216157,128.99,128.85,0.14216157]
[1740710781651,1.62871866,128.98,128.84,60.29280991]
[1740710781852,1.62871866,129.02,128.84,196.79280991]
[1740710782054,1.62871866,129.09,128.89,20.0]
[1740710782256,52.48121017,129.08,128.89,20.0]
[1740710782454,0.14216157,129.06,128.89,20.0]
[1740710782763,0.14216157,129.01,128.83,38.40296014]
[1740710782940,130.7,129.12,128.79,10.7147138]
[1740710782941,0.14216157,128.99,128.8,38.88656958]
[1740710783265,217.84,129.24,128.82,38.13163086]
[1740710783266,0.14216157,128.97,128.82,38.13163086]
[1740710783466,0.14216157,128.95,128.89,20.0]
[1740710783645,0.14216157,128.95,128.81,38.47011659]
[1740710783840,1.62871866,128.94,128.81,38.47011659]
[1740710784036,0.14216157,128.96,128.82,1.62939662]
[1740710784258,0.14216157,128.94,128.87,20.0]
[1740710784464,0.14216157,128.92,128.8,38.88656958]
[1740710784672,0.14216157,128.9,128.82,38.13163086]
[1740710784958,0.14216157,128.88,128.81,0.063]
[1740710785167,24.09708883,128.87,128.79,2.6660138]
[1740710785353,24.2392504,128.86,128.79,0.5248455]
[1740710785552,24.09708883,128.85,128.79,0.5248455]
[1740710785939,0.14216157,128.84,128.79,0.5248455]
[1740710786143,0.14216157,128.82,128.79,0.5248455]
[1740710786368,0.14216157,128.8,128.69,38.05250289]
[1740710787067,0.14216157,128.8,128.68,0.063]
[1740710787264,0.14216157,128.78,128.68,0.063]
[1740710787466,24.09708883,128.77,128.68,0.063]
[1740710787675,24.09708883,128.76,128.68,0.063]
[1740710787848,24.09708883,128.75,128.68,0.063]
[1740710788040,24.09708883,128.81,128.68,0.063]
[1740710788246,0.14216157,128.79,128.66,1.66150804]
[1740710788466,0.14216157,128.77,128.66,0.03]
[1740710788665,0.14216157,128.75,128.66,0.03]
[1740710788865,24.09708883,128.76,128.66,20.03]
[1740710789173,24.09708883,128.81,128.66,20.03]
[1740710789343,24.09708883,128.8,128.66,27.8023]
[1740710789545,24.2392504,128.79,128.66,0.03]
[1740710789770,0.14216157,128.77,128.66,0.03]
[1740710790067,0.14216157,128.75,128.66,0.03]
[1740710790271,33.22868883,128.82,128.66,0.03]
[1740710790443,24.2392504,128.81,128.66,0.03]
[1740710790642,24.2392504,128.81,128.63,27.2097]
[1740710790862,24.09708883,128.81,128.64,0.14216157]
[1740710791067,0.14216157,128.81,128.63,27.2097]
[1740710791244,0.14216157,128.81,128.64,0.14216157]
[1740710791450,24.2392504,128.81,128.63,27.2097]
[1740710791651,7.63869902,128.83,128.64,0.14216157]
[1740710791862,9.1316,128.89,128.64,136.64216157]
[1740710792067,24.09708883,128.88,128.66,0.14216157]
[1740710792259,24.09708883,128.87,128.64,27.2076]
[1740710792573,0.14216157,128.85,128.64,7.7736]
[1740710792879,0.14216157,128.83,128.64,7.7736]
[1740710793055,24.09708883,128.84,128.68,0.14216157]
[1740710793371,1.39463175,128.87,128.68,156.64216157]
[1740710793554,20.0,128.86,128.68,20.14216157]
[1740710793871,16.93056239,128.89,128.67,20.0]
[1740710793872,0.14216157,128.85,128.67,20.0]
[1740710794177,24.2392504,128.88,128.67,20.0]
[1740710794354,24.2392504,128.88,128.68,7.7712]
[1740710794549,20.14216157,128.84,128.59,46.6598]
[1740710794763,0.14216157,128.82,128.59,202.6014]
[1740710795061,24.09708883,128.81,128.59,241.4846]
[1740710795271,24.09708883,128.81,128.6,0.14216157]
[1740710795454,24.09708883,128.88,128.63,20.14216157]
[1740710795773,24.09708883,128.88,128.69,0.14216157]
[1740710795946,24.09708883,128.95,128.73,0.14216157]
[1740710796147,24.09708883,128.94,128.77,0.14216157]
[1740710796351,24.09708883,128.94,128.81,20.0]
[1740710796552,0.14216157,128.93,128.81,20.0]
[1740710796761,31.49163375,128.94,128.82,0.14216157]
[1740710796968,24.09708883,129.02,128.82,0.14216157]
[1740710797152,24.09708883,129.01,128.85,20.0]
[1740710797353,24.09708883,129.0,128.86,0.14216157]
[1740710797554,0.063,128.95,128.86,0.14216157]
[1740710798067,0.063,128.95,128.84,0.14216157]
[1740710798271,0.063,128.95,128.86,20.0]
[1740710798454,0.063,128.95,128.82,38.13163086]
[1740710798660,0.063,128.95,128.75,19.417]
[1740710798661,0.14216157,128.93,128.76,38.81669496]
[1740710798871,9.27376157,128.91,128.74,38.59557253]
[1740710799058,0.14216157,128.91,128.9,4.71961864]
[1740710799265,0.14216157,128.89,128.68,38.44256767]
[1740710799573,0.14216157,128.87,128.68,38.44256767]
[1740710799774,82.8,128.86,128.68,174.94256767]
[1740710800159,6.29732814,128.92,128.65,7.7724]
[1740710800160,82.8,128.85,128.65,7.7724]
[1740710800353,213.74,128.84,128.61,136.5]
[1740710800556,82.8,128.83,128.61,136.5]
[1740710800770,82.8,128.82,128.61,136.5]
[1740710801071,82.8,128.94,128.71,20.0]
[1740710801277,121.61504512,128.93,128.76,38.81669496]
[1740710801482,82.8,128.92,128.73,38.30159149]
[1740710801658,8.90355096,128.88,128.74,0.14216157]
[1740710801865,8.90355096,128.88,128.83,20.0]
[1740710802068,38.11421428,128.94,128.83,20.0]
[1740710802257,38.11421428,128.94,128.85,7.7609]
[1740710802672,38.11421428,128.94,128.88,20.0]
[1740710802978,38.11421428,128.94,128.89,20.14216157]
[1740710803278,0.063,128.95,128.89,156.64216157]
[1740710803775,82.8,129.15,128.91,0.14216157]
[1740710803974,82.8,129.15,128.95,0.14216157]
[1740710804362,82.8,129.09,128.92,1.41837684]
[1740710804567,82.8,129.08,128.9,20.0]
[1740710804897,82.70232508,129.07,128.88,0.14216157]
[1740710805195,20.0,129.03,128.86,12.1205]
[1740710805476,82.70232508,129.02,128.8,138.7238]
[1740710805676,20.0,128.98,128.8,130.96]
[1740710805884,82.70232508,128.97,128.8,130.96]
[1740710806174,20.0,128.93,128.77,7.9682]
[1740710806378,20.0,128.93,128.71,12.6016]
[1740710806379,82.70232508,128.92,128.71,12.6016]
[1740710806622,213.58232508,128.91,128.71,20.3709]
[1740710807084,82.70232508,128.97,128.71,176.2944]
[1740710807264,82.70232508,128.97,128.72,0.14216157]
[1740710807461,82.70232508,128.97,128.74,0.14216157]
[1740710807667,82.70232508,128.97,128.76,0.14216157]
[1740710807866,130.88,128.99,128.78,0.14216157]
[1740710808166,0.063,128.94,128.78,0.14216157]
[1740710808372,0.063,128.94,128.71,149.1016]
[1740710808688,82.70232508,128.93,128.72,7.7688]
[1740710808860,82.70232508,128.93,128.72,144.2688]
[1740710809063,82.70232508,128.93,128.72,163.6908]
[1740710809262,0.063,128.94,128.75,20.0]
[1740710809568,0.063,128.94,128.77,0.14216157]
[1740710809767,0.063,128.94,128.77,130.92]
[1740710810164,0.063,128.94,128.81,0.14216157]
[1740710810370,0.063,128.94,128.85,20.0]
[1740710810694,0.063,128.94,128.77,130.92]
[1740710811000,0.063,128.94,128.73,7.7681]
[1740710811202,82.70232508,128.93,128.73,7.7681]
[1740710811373,0.14216157,128.92,128.76,20.0]
[1740710811570,0.14216157,128.9,128.76,20.0]
[1740710811775,82.70232508,128.89,128.76,20.0]
[1740710812492,82.70232508,128.88,128.72,7.7688]
[1740710812691,20.0,128.84,128.71,12.6016]
[1740710812887,82.70232508,128.83,128.71,12.6016]
[1740710813093,82.70232508,128.89,128.71,156.8708]
[1740710813393,0.063,128.94,128.71,12.6016]
[1740710813394,82.84448665,128.88,128.71,12.6016]
[1740710813984,82.70232508,128.88,128.71,12.6016]
[1740710814194,82.70232508,128.87,128.74,20.0]
[1740710814386,82.70232508,128.86,128.73,7.90976157]
[1740710814701,82.70232508,128.92,128.77,0.14216157]
[1740710814995,82.70232508,128.92,128.8,0.14216157]
[1740710815193,0.063,128.94,128.79,136.5]
[1740710815194,38.17721428,128.94,128.79,136.5]
[1740710815377,82.70232508,128.93,128.74,0.14216157]
[1740710815693,82.70232508,128.93,128.78,0.14216157]
[1740710816603,82.70232508,128.92,128.78,7.90706157]
[1740710816778,82.70232508,128.92,128.78,0.14216157]
[1740710816974,82.70232508,128.92,128.78,7.90726157]
[1740710817176,0.063,128.94,128.81,20.0]
[1740710817481,0.063,128.94,128.82,0.14216157]
[1740710817684,0.063,128.94,128.87,0.14216157]
[1740710817877,0.063,128.94,128.87,174.8427476]
[1740710818082,42.73901823,129.07,128.87,176.26167475]
[1740710818381,42.73901823,129.07,128.93,38.54891862]
[1740710818582,42.73901823,129.07,128.95,0.14216157]
[1740710818784,42.73901823,129.07,128.97,38.19473357]
[1740710819206,42.73901823,129.07,129.01,20.0]
[1740710819392,0.03,129.1,129.02,0.14216157]
[1740710819595,0.03,129.1,129.02,20.14216157]
[1740710820097,0.03,129.1,129.01,13.0382]
[1740710820302,0.03,129.1,128.98,7.5249]
[1740710820491,0.03,129.1,128.94,13.0382]
[1740710820880,20.03,129.1,128.98,20.0]
[1740710821080,0.03,129.1,129.01,0.14216157]
[1740710821295,0.03,129.1,129.02,1.62653911]
[1740710821675,0.03,129.1,129.02,38.23011961]
[1740710821903,0.03,129.1,129.07,0.14216157]
[1740710822080,0.03,129.2,129.07,1.7681099]
[1740710822286,0.03,129.2,129.11,20.0]
[1740710822485,0.03,129.2,129.12,21.76748891]
[1740710822689,0.03,129.2,129.12,158.26748891]
[1740710823005,38.67953471,129.3,129.12,156.64216157]
[1740710823175,38.67953471,129.3,129.12,239.65834142]
[1740710823378,38.67953471,129.3,129.14,0.14216157]
[1740710823608,38.67953471,129.3,129.16,0.14216157]
[1740710823903,38.67953471,129.3,129.2,0.14216157]
[1740710824118,93.73900635,129.32,129.24,20.0]
[1740710824405,11.03668127,129.32,129.25,1.76630086]
[1740710824599,11.03668127,129.32,129.29,0.14216157]
[1740710825003,11.03668127,129.36,129.3,1.62328638]
[1740710825393,7.56055983,129.42,129.24,174.97485951]
[1740710825394,111.5890241,129.43,129.37,3.24036074]
[1740710825604,48.35461222,129.43,129.37,3.24036074]
[1740710825787,16.47944586,129.42,129.37,3.24036074]
[1740710826099,86.4261359,129.43,129.25,38.54365177]
[1740710826402,40.62841222,129.43,129.29,38.39273095]
[1740710826612,2.6660138,129.44,129.31,38.57780367]
[1740710826789,2.6660138,129.44,129.35,38.45115318]
[1740710826991,130.7,129.57,129.38,38.61878589]
[1740710826992,7.7187,129.56,129.38,38.61878589]
[1740710827196,7.7187,129.56,129.38,40.24094707]
[1740710827394,7.56798016,129.56,129.4,38.55754358]
[1740710827595,38.57637608,129.59,129.42,38.81090765]
[1740710827786,7.48741145,129.6,129.44,38.77903084]
[1740710827994,0.03,129.6,129.45,0.14216157]
[1740710828192,0.03,129.6,129.45,38.28100605]
[1740710828390,0.03,129.6,129.38,38.61878589]
[1740710828586,0.03,129.6,129.43,0.14216157]
[1740710828787,0.03,129.6,129.49,0.14216157]
[1740710829005,20.03,129.6,129.41,38.87073422]
[1740710829211,20.0,129.59,129.39,38.78665068]
[1740710829413,16.47944586,129.58,129.38,38.61878589]
[1740710829598,0.14216157,129.57,129.38,38.61878589]
[1740710829802,0.14216157,129.52,129.37,12.3637]
[1740710830099,0.14216157,129.48,129.38,38.61878589]
[1740710830284,0.14216157,129.48,129.31,38.57780367]
[1740710830485,7.86766157,129.44,129.29,38.39273095]
[1740710830800,1e-08,129.53,129.29,174.89273095]
[1740710830999,0.14216158,129.53,129.3,0.14216157]
[1740710831311,46.11124315,129.58,129.39,38.92881225]
[1740710831606,1e-08,129.59,129.42,0.14216157]
[1740710831809,0.03,129.6,129.42,0.14216157]
[1740710831810,0.03,129.6,129.42,38.81090765]
[1740710831992,0.03,129.6,129.47,0.14216157]
[1740710832195,0.03,129.6,129.51,0.14216157]
[1740710832394,0.03,129.6,129.5,136.64216157]
[1740710832591,0.03,129.6,129.47,267.02]
[1740710832793,0.03,129.6,129.49,38.26885354]
[1740710832998,0.03,129.6,129.5,38.83079057]
[1740710833207,0.03,129.6,129.52,38.49326559]
[1740710833514,0.03,129.6,129.51,12.5024]
[1740710833895,0.03,129.6,129.43,38.99107403]
[1740710834108,1e-08,129.59,129.43,38.99107403]
[1740710834301,1e-08,129.59,129.42,50.83990765]
[1740710834504,0.14216157,129.57,129.42,12.029]
[1740710834703,1e-08,129.56,129.42,12.029]
[1740710834909,1e-08,129.55,129.43,38.99107403]
[1740710835312,1e-08,129.55,129.4,8.1404]